fUST/lending_fUST_20240525
["ID","MTS","AMOUNT","RATE_DAILY","PERIOD"]
[327900975,1716592149363,-9566.24990796,0.00012874,2]
[327900976,1716592149591,-10516.31440065,0.00012874,2]
[327900977,1716592149612,-2468.06779871,0.00012875,2]
[327900978,1716592149634,-1899.08832656,0.00012875,2]
[327900979,1716592149654,-9405.35671463,0.00012876,2]
[327900980,1716592149675,-3064.3909481,0.00012877,2]
[327900981,1716592149695,-11064.75247274,0.00012877,2]
[327900982,1716592149717,-1869.77973806,0.00012878,2]
[327900983,1716592149738,-156.57389491,0.00012878,2]
[327900984,1716592149759,-230.98821188,0.00012878,2]
[327900985,1716592149779,-1339.904712,0.00012878,2]
[327900986,1716592149800,-4232.81964283,0.00012879,2]
[327900987,1716592149820,-231.89205691,0.00012974,2]
[327900988,1716592149845,-24233.26437808,0.00012975,2]
[327900989,1716592151681,2911.64701486,0.00011977,2]
[327900990,1716592151714,9000.0,0.00011977,2]
[327900991,1716592155370,154.8915759,9.999e-05,2]
[327900992,1716592159123,-733.4773594,0.00011976,2]
[327900993,1716592159146,-10111.7216406,0.00011977,2]
[327900994,1716592163098,-7899.73937105,0.00011976,2]
[327900995,1716592163118,-772.71271102,0.00011976,2]
[327900996,1716592163139,-2876.63134454,0.00011977,2]
[327900997,1716592163160,-371.4516817,0.00012871,2]
[327900998,1716592163180,-1894.87961524,0.00012871,2]
[327900999,1716592163201,-215.83943252,0.00012876,2]
[327901000,1716592163222,-2636.31883716,0.00012876,2]
[327901001,1716592163242,-835.39687753,0.00012973,2]
[327901002,1716592163268,-283.83941823,0.00012973,2]
[327901003,1716592163293,-2468.06779871,0.00012973,2]
[327901004,1716592163315,-640.02974031,0.00012973,2]
[327901005,1716592163337,-3064.3909481,0.00012973,2]
[327901006,1716592163359,-2599.40071805,0.00012973,2]
[327901007,1716592163379,-371.81716434,0.00012974,2]
[327901008,1716592163402,-9405.35671463,0.00012974,2]
[327901009,1716592163422,-10516.31440065,0.00012974,2]
[327901010,1716592163443,-35205.43856924,0.00012975,2]
[327901011,1716592163465,-164.03024625,0.00012977,2]
[327901012,1716592163485,-155.13052941,0.00012977,2]
[327901013,1716592163506,-303.17653568,0.00012977,2]
[327901014,1716592163527,-194.9200639,0.00012981,2]
[327901015,1716592163548,-1586.75851041,0.00012981,2]
[327901016,1716592163568,-334.81945719,0.00012987,2]
[327901017,1716592163728,-159.20021078,0.00013084,2]
[327901018,1716592163748,-1728.55395962,0.00013092,2]
[327901019,1716592163768,-631.13051759,0.00013093,2]
[327901020,1716592163788,-207.73682713,0.00013098,2]
[327901021,1716592163808,-553.10944544,0.00013098,2]
[327901022,1716592163828,-700.73310105,0.00013098,2]
[327901023,1716592163852,-533.08212997,0.00013099,2]
[327901024,1716592163873,-498.74985468,0.00013099,2]
[327901025,1716592163894,-282.98810533,0.00013099,2]
[327901026,1716592163918,-156.16720216,0.00013101,2]
[327901027,1716592163940,-239.20360219,0.00013106,2]
[327901028,1716592163960,-163.99966982,0.00013106,2]
[327901029,1716592163980,-264.44588343,0.00013107,2]
[327901030,1716592164000,-154.8915759,0.00013109,2]
[327901031,1716592164020,-7098.6853292,0.00013112,2]
[327901032,1716592164040,-1736.23636816,0.00013699,2]
[327901033,1716592164060,-1158.937424,0.00013699,2]
[327901034,1716592164080,-3000.0,0.00013699,2]
[327901035,1716592164101,-283.81918026,0.000137,2]
[327901036,1716592164122,-378.52430906,0.00014111,2]
[327901037,1716592164143,-200.28999539,0.00014112,2]
[327901038,1716592164167,-12021.36251673,0.00014127,2]
[327901039,1716592164189,-4232.81964279,0.00014429,2]
[327901040,1716592164210,-2800.82835012,0.00015,2]
[327901041,1716592164231,-34962.38017179,0.00015,2]
[327901042,1716592164255,-2403.28933653,0.00015,2]
[327901043,1716592164275,-943.36429939,0.00015,2]
[327901044,1716592164296,-1685.54934894,0.00015,2]
[327901045,1716592164317,-1149.98755122,0.00015,2]
[327901046,1716592164336,-154.8915759,0.00015,2]
[327901047,1716592164357,-317.23784288,0.00015125,2]
[327901048,1716592164378,-155.37274483,0.0001513,2]
[327901049,1716592164401,-157.41228897,0.00015132,2]
[327901050,1716592164422,-174.42675747,0.00015134,2]
[327901051,1716592164444,-355.76210028,0.00015135,2]
[327901052,1716592164466,-704.6166251,0.0001514,2]
[327901053,1716592164488,-226.21509983,0.0001514,2]
[327901054,1716592164509,-691.1788949,0.0001514,2]
[327901055,1716592164531,-478.56425277,0.0001514,2]
[327901056,1716592164552,-189.49056374,0.0001514,2]
[327901057,1716592164576,-252.67698573,0.0001514,2]
[327901058,1716592164596,-155.32570486,0.00015141,2]
[327901059,1716592164617,-525.92093777,0.00015141,2]
[327901060,1716592164637,-207.96453592,0.00015141,2]
[327901061,1716592164658,-154.90523116,0.00015141,2]
[327901062,1716592164678,-215.86165154,0.00015141,2]
[327901063,1716592164699,-251.00275991,0.00015141,2]
[327901064,1716592164720,-190.8485057,0.00015144,2]
[327901065,1716592164740,-313.75953548,0.00015145,2]
[327901066,1716592164760,-155.45277014,0.00015148,2]
[327901067,1716592164780,-260.41137426,0.00015148,2]
[327901068,1716592164800,-411.50305766,0.00015148,2]
[327901069,1716592164821,-156.91469726,0.0001515,2]
[327901070,1716592164843,-469.9027261,0.00015173,2]
[327901071,1716592164862,-190.06506775,0.000156,2]
[327901072,1716592164885,-962.44924846,0.00015859,2]
[327901073,1716592164906,-4232.81964279,0.00015979,2]
[327901074,1716592164929,-155.59448275,0.0001602,2]
[327901075,1716592164949,-306.99387204,0.0001602,2]
[327901076,1716592164969,-155.0341075,0.0001602,2]
[327901077,1716592164989,-228.54380893,0.0001602,2]
[327901078,1716592165011,-212.5000873,0.0001602,2]
[327901079,1716592165031,-522.55285322,0.0001602,2]
[327901080,1716592165051,-225.54685118,0.00016383,2]
[327901081,1716592165072,-250.47159807,0.00016383,2]
[327901082,1716592165092,-251.85553437,0.00016383,2]
[327901083,1716592165114,-308.24746805,0.00016384,2]
[327901084,1716592165135,-154.98450155,0.00016384,2]
[327901085,1716592165156,-200.0,0.00016387,2]
[327901086,1716592165178,-155.30339416,0.00016387,2]
[327901087,1716592165200,-155.18172002,0.00016387,2]
[327901088,1716592165221,-279.66473354,0.00016387,2]
[327901089,1716592165243,-274.63235341,0.000165,2]
[327901090,1716592165265,-155.09036724,0.00016896,2]
[327901091,1716592165286,-157.45114224,0.00016896,2]
[327901092,1716592165307,-308.44915334,0.00016896,2]
[327901093,1716592165329,-154.98450155,0.00016896,2]
[327901094,1716592165348,-1934.62237445,0.00016897,2]
[327901095,1716592165369,-247.56118197,0.00016898,2]
[327901096,1716592165389,-245.92298999,0.00016898,2]
[327901097,1716592165410,-155.59964495,0.00016898,2]
[327901098,1716592165429,-188.35473427,0.00016898,2]
[327901099,1716592165449,-163.01062011,0.00016898,2]
[327901100,1716592165470,-200.0,0.00016898,2]
[327901101,1716592165490,-154.9690062,0.00016898,2]
[327901102,1716592165511,-195.06566195,0.00016898,2]
[327901103,1716592165532,-1154.88110186,0.00016898,2]
[327901104,1716592165554,-155.36004736,0.00016898,2]
[327901105,1716592165575,-200.66987231,0.00016898,2]
[327901106,1716592165596,-304.17588877,0.00016898,2]
[327901107,1716592165617,-155.27339031,0.00016898,2]
[327901108,1716592165638,-204.40270621,0.00016898,2]
[327901109,1716592165658,-177.23924726,0.00016898,2]
[327901110,1716592165678,-155.03719357,0.00016898,2]
[327901111,1716592165699,-170.6341888,0.00016898,2]
[327901208,1716592234052,-371.4516817,0.00011971,2]
[327901209,1716592234073,-230.98821188,0.00011972,2]
[327901210,1716592234093,-1899.08832656,0.00011972,2]
[327901211,1716592234114,-1978.87096567,0.00011972,2]
[327901212,1716592234136,-11064.75247274,0.00011972,2]
[327901213,1716592234156,-1869.77973806,0.00011972,2]
[327901214,1716592234178,-24074.82860339,0.00011972,2]
[327901255,1716592238835,-2636.31883716,0.00011971,2]
[327901257,1716592238846,-3064.3909481,0.00011971,2]
[327901259,1716592238858,-5783.45646484,0.00011972,2]
[327901266,1716592239046,-29580.41787909,0.00011972,2]
[327901267,1716592239056,-245.64738111,0.00011973,2]
[327901268,1716592239065,-1421.71740969,0.00011973,2]
[327901269,1716592239077,-3368.57495305,0.00011973,2]
[327901361,1716592242748,-9405.35671463,0.0001197,2]
[327901362,1716592242758,-2599.40071805,0.00011971,2]
[327901363,1716592242768,-7899.73937105,0.00011971,2]
[327901364,1716592242776,-5223.88733025,0.00011973,2]
[327901372,1716592243403,-31983.64566947,0.00011973,2]
[327901375,1716592243413,-2985.85433054,0.00011973,2]
[327901492,1716592247173,-618.79862836,0.00011969,2]
[327901495,1716592247185,-3089.58314964,0.00011969,2]
[327901497,1716592247197,-6807.93262265,0.00011969,2]
[327901499,1716592247206,-1894.87961524,0.0001197,2]
[327901501,1716592247215,-11064.75247274,0.00011972,2]
[327901503,1716592247226,-12014.14566946,0.00011973,2]
[327901505,1716592247235,-5518.82690677,0.00011973,2]
[327901602,1716592289611,-2680.78177916,0.0001161,2]
[327901603,1716592289632,-6443.46322084,0.0001161,2]
[327901604,1716592330487,-2599.40071805,0.00011604,2]
[327901605,1716592330507,-1869.77973806,0.00011605,2]
[327901606,1716592330528,-11064.75247274,0.00011606,2]
[327901607,1716592330550,-4550.86707115,0.00011606,2]
[327901608,1716592351413,381.1048405,0.00010607,2]
[327901609,1716592367399,-2636.31883716,0.00011601,2]
[327901610,1716592367422,-811.71660103,0.00011602,2]
[327901611,1716592367444,-1899.08832656,0.00011602,2]
[327901612,1716592367466,-9566.24990796,0.00011603,2]
[327901613,1716592367489,-155.08326852,0.00011603,2]
[327901614,1716592367510,-1894.87961524,0.00011604,2]
[327901615,1716592367532,-1869.77973806,0.00011605,2]
[327901616,1716592367554,-1608.78370547,0.00011605,2]
[327901617,1716592381092,230.98821188,0.00011599,2]
[327901618,1716592381230,8233.01537172,0.00011599,2]
[327901619,1716592465558,-54415.89,0.00011593,2]
[327901621,1716592671512,9000.0,0.00010487,2]
[327901622,1716592671542,9000.0,0.00010487,2]
[327901623,1716592731387,198.8672521,9.486e-05,2]
[327901624,1716592778199,789.1465469,9.481e-05,2]
[327901625,1716592780764,1187.0493869,9.555e-05,2]
[327901626,1716593009196,64674.9368141,9.264e-05,2]
[327901627,1716593009230,7347.5162138,9.264e-05,2]
[327901628,1716593023417,7602.01745301,9.555e-05,2]
[327901629,1716593026767,365.94477362,9.555e-05,2]
[327901630,1716593027194,9345.26990203,9.555e-05,2]
[327901631,1716593155874,24900.0,9.251e-05,2]
[327901632,1716593217851,250.0,9.244e-05,2]
[327901633,1716593234096,-497.87954,0.00010238,2]
[327901634,1716593235149,-2060.83188242,0.00010238,2]
[327901635,1716593239104,-481.40770266,0.00010238,2]
[327901636,1716593315285,690.72744387,9.999e-05,2]
[327901637,1716593356101,-15000.0,0.00010134,2]
[327901638,1716593356121,-7899.73937105,0.00010134,2]
[327901639,1716593356142,-2636.31883716,0.00010135,2]
[327901640,1716593356162,-1894.87961524,0.00010135,2]
[327901641,1716593356181,-1869.77973806,0.00010135,2]
[327901642,1716593356203,-9566.24990796,0.00010135,2]
[327901643,1716593356222,-2599.40071805,0.00010136,2]
[327901644,1716593356242,-2680.78177916,0.00010136,2]
[327901645,1716593356261,-1899.08832656,0.00010137,2]
[327901646,1716593356282,-1978.87096567,0.00010137,2]
[327901647,1716593356302,-2314.80072077,0.00010138,2]
[327901648,1716593356322,-692.28215507,0.0001023,2]
[327901649,1716593356342,-59438.70294732,0.00010231,2]
[327901650,1716593356362,-41997.82536246,0.00010231,2]
[327901651,1716593356382,-68095.5551988,0.00010232,2]
[327901652,1716593356402,-3064.3909481,0.00010233,2]
[327901653,1716593356425,-194.59578805,0.00010235,2]
[327901654,1716593356446,-1889.34398731,0.00010238,2]
[327901655,1716593356466,-234.35329789,0.00010238,2]
[327901656,1716593356487,-164.22476924,0.00010266,2]
[327901657,1716593356507,-164.22476923,0.00010364,2]
[327901658,1716593356531,-366.67698101,0.00010486,2]
[327901659,1716593356552,-3632.73611165,0.00011593,2]
[327901660,1716593356572,-232.73775221,0.00011597,2]
[327901661,1716593356596,-8757.93118521,0.00011598,2]
[327901662,1716593356616,-8112.71692946,0.00011605,2]
[327901663,1716593356636,-154.9690062,0.00011605,2]
[327901664,1716593356656,-160.27099543,0.00011605,2]
[327901665,1716593356676,-10436.91051711,0.00011605,2]
[327901666,1716593356699,-430.26016679,0.00011605,2]
[327901667,1716593356719,-8839.35670617,0.00011971,2]
[327901668,1716593356740,-158.56849578,0.00011971,2]
[327901669,1716593356760,-356.8279204,0.00011974,2]
[327901670,1716593356781,-1803.99604655,0.00011974,2]
[327901671,1716593356803,-230.5876693,0.00011974,2]
[327901672,1716593356823,-547.0464565,0.00011975,2]
[327901673,1716593356845,-2314.80072074,0.00012373,2]
[327901674,1716593356866,-3239.98818681,0.000129,2]
[327901675,1716593356887,-187.06230459,0.00012973,2]
[327901676,1716593356907,-1464.105868,0.00013699,2]
[327901677,1716593356926,-3000.0,0.00013699,2]
[327901678,1716593356948,-1606.1586894,0.00013699,2]
[327901679,1716593356968,-283.81918026,0.000137,2]
[327901680,1716593356988,-1521.93722607,0.00014,2]
[327901681,1716593357008,-920.10494263,0.00014,2]
[327901682,1716593357029,-3239.98818674,0.00014384,2]
[327901683,1716593357052,-2314.80072074,0.00014608,2]
[327901684,1716593357072,-1410.69467973,0.00015,2]
[327901685,1716593357228,-154.8915759,0.00015,2]
[327901686,1716593357250,-34962.38017179,0.00015,2]
[327901687,1716593357270,-1857.39247152,0.00015,2]
[327901688,1716593357290,-1685.54934894,0.00015,2]
[327901689,1716593357311,-361.57991434,0.00015,2]
[327901690,1716593357331,-1149.98755122,0.00015,2]
[327901691,1716593357354,-153.19577562,0.000151,2]
[327901692,1716593357374,-153.19577561,0.000151,2]
[327901693,1716593357394,-190.06506775,0.000156,2]
[327901694,1716593357415,-274.63235341,0.000165,2]
[327901695,1716593357435,-417.57091557,0.00016581,2]
[327901696,1716593357456,-4226.56801723,0.00016692,2]
[327901697,1716593357477,-339.64393446,0.00016843,2]
[327902035,1716593506496,1869.77973806,0.00010099,2]
[327902037,1716593524907,560.2606145,9.119e-05,2]
[327902038,1716593526567,2979.8174022,9.119e-05,2]
[327902039,1716593538368,7899.73937105,0.00010099,2]
[327902040,1716593542697,2680.78177916,0.00010099,2]
[327902041,1716593543412,13983.75900442,0.00010099,2]
[327902042,1716593568404,1339.904712,9.999e-05,2]
[327902043,1716593599461,13443.73934608,9.999e-05,2]
[327902044,1716593610156,733.4773594,9.999e-05,2]
[327902045,1716593618950,154.8915759,9.999e-05,2]
[327902046,1716593620307,24900.0,9.096e-05,2]
[327902047,1716593623402,523.01612629,9.999e-05,2]
[327902048,1716593676669,733.4773594,9.999e-05,2]
[327902049,1716593686186,1995.09182195,9.988e-05,2]
[327902050,1716593689459,154.8915759,9.999e-05,2]
[327902051,1716593742067,624.37968928,9.084e-05,2]
[327902052,1716593742089,7174.12852032,9.084e-05,2]
[327902053,1716593755760,1660.2084783,9.154e-05,2]
[327902054,1716593761585,250.0,9.082e-05,2]
[327902055,1716593761867,406.4195259,9.082e-05,2]
[327902056,1716593762129,163.28842456,9.979e-05,2]
[327902057,1716593767127,163.28842455,9.98e-05,2]
[327902058,1716593772476,163.28842455,9.98e-05,2]
[327902059,1716593787945,514.8955851,9.08e-05,2]
[327902060,1716593905810,-2599.40071805,0.00010066,2]
[327902061,1716593905832,-2636.31883716,0.00010066,2]
[327902062,1716593905855,-9405.35671463,0.00010067,2]
[327902063,1716593905877,-7899.73937105,0.00010067,2]
[327902064,1716593905898,-9566.24990796,0.00010068,2]
[327902065,1716593905920,-1899.08832656,0.00010069,2]
[327902066,1716593905941,-15993.84612459,0.00010069,2]
[327902068,1716593978838,1451.43050368,0.0002,10]
[327902069,1716593989100,685.11026498,9.999e-05,2]
[327902070,1716594003696,160.8583296,9.065e-05,2]
[327902071,1716594049631,15271.71165638,9.065e-05,2]
[327902072,1716594050732,154.8915759,9.065e-05,2]
[327902073,1716594056905,365.1890674,9.065e-05,2]
[327902074,1716594059816,410.78184757,9.999e-05,2]
[327902075,1716594065212,797.65488568,9.999e-05,2]
[327902076,1716594070689,154.92261299,9.065e-05,2]
[327902077,1716594074887,836.12249757,9.999e-05,2]
[327902078,1716594082851,365.1890674,9.065e-05,2]
[327902079,1716594085055,2125.69105416,9.957e-05,2]
[327902080,1716594104850,365.1890674,9.065e-05,2]
[327902081,1716594106098,154.8915759,9.999e-05,2]
[327902082,1716594124868,214.12817071,9.065e-05,2]
[327902083,1716594132618,24900.0,9.053e-05,2]
[327902084,1716594163952,273.37336231,9.9e-05,2]
[327902085,1716594170456,298.13197339,8.612e-05,2]
[327902086,1716594172482,273.37336231,9.9e-05,2]
[327902087,1716594176299,2551.67614429,9.065e-05,2]
[327902088,1716594181381,215.83943252,9.999e-05,2]
[327902089,1716594181719,273.37336231,9.9e-05,2]
[327902090,1716594189521,175.72514253,9.999e-05,2]
[327902091,1716594190280,273.37336231,9.9e-05,2]
[327902092,1716594199587,273.37336231,9.9e-05,2]
[327902093,1716594211051,235.5304996,9.046e-05,2]
[327902094,1716594223355,1339.904712,9.999e-05,2]
[327902095,1716594226349,410.78184757,9.999e-05,2]
[327902096,1716594227958,551.07722985,9.999e-05,2]
[327902097,1716594231150,521.71519389,9.999e-05,2]
[327902098,1716594234930,836.12249757,9.999e-05,2]
[327902099,1716594237644,685.11026498,9.999e-05,2]
[327902100,1716594242027,2182.07532893,9.999e-05,2]
[327902101,1716594243996,160.27099543,9.999e-05,2]
[327902102,1716594248685,250.0,9.041e-05,2]
[327902103,1716594249632,16158.38286533,9.9e-05,2]
[327902104,1716594250777,238.95770252,9.999e-05,2]
[327902105,1716594250820,1497.56271984,9.999e-05,2]
[327902106,1716594251322,620.9607675,9.041e-05,2]
[327902107,1716594265368,285.2556899,9.999e-05,2]
[327902108,1716594269937,690.72744387,9.999e-05,2]
[327902109,1716594271607,7940.05235525,9.999e-05,2]
[327902110,1716594272678,281.75410999,9.999e-05,2]
[327902111,1716594274269,3803.64535958,9.999e-05,2]
[327902112,1716594278527,455.7724915,9.999e-05,2]
[327902113,1716594293063,3375.14983584,9.999e-05,2]
[327902114,1716594308272,19264.17315278,9.999e-05,2]
[327902115,1716594312733,371.4516817,9.999e-05,2]
[327902116,1716594319128,3414.38,0.00028,120]
[327902117,1716594321120,291.87095363,7.523e-05,2]
[327902118,1716594325246,234.45392867,9.999e-05,2]
[327902119,1716594325450,523.01612629,9.999e-05,2]
[327902120,1716594326275,3392.25569452,9.999e-05,2]
[327902121,1716594328922,194.59578805,9.999e-05,2]
[327902122,1716594340454,916.65407287,9.999e-05,2]
[327902123,1716594341039,291.87095363,7.522e-05,2]
[327902124,1716594341226,234.45392867,9.999e-05,2]
[327902125,1716594342304,302.52048176,9.999e-05,2]
[327902126,1716594348599,3414.0,0.00028,120]
[327902127,1716594359245,234.45392867,9.999e-05,2]
[327902128,1716594363048,291.87095363,7.522e-05,2]
[327902130,1716594383042,291.93026943,7.517e-05,2]
[327902131,1716594403419,291.81163783,7.517e-05,2]
[327902133,1716594425059,291.87095363,7.515e-05,2]
[327902134,1716594437217,-21942.6123458,0.00010019,2]
[327902135,1716594441053,351.96129297,7.513e-05,2]
[327902136,1716594475060,291.87095363,7.512e-05,2]
[327902137,1716594484430,1875.17002506,9.92e-05,2]
[327902138,1716594493060,291.87095363,7.509e-05,2]
[327902139,1716594496542,175.72514253,9.999e-05,2]
[327902140,1716594497850,230.98821188,9.999e-05,2]
[327902141,1716594499929,215.83943252,9.999e-05,2]
[327902142,1716594515361,461.4511379,9.014e-05,2]
[327902143,1716594517069,286.60348021,7.509e-05,2]
[327902144,1716594526797,1894.87961524,9.999e-05,2]
[327902145,1716594528602,1027.8590387,9.013e-05,2]
[327902146,1716594545110,-165.00970685,0.00010006,2]
[327902147,1716594545131,-9566.24990796,0.00010007,2]
[327902148,1716594545152,-68095.5551988,0.00010007,2]
[327902149,1716594545172,-2599.40071805,0.00010007,2]
[327902150,1716594545193,-7899.73937105,0.00010008,2]
[327902151,1716594545216,-5629.90909729,0.00010008,2]
[327902152,1716594568114,-154.82968734,0.00010006,2]
[327902160,1716594580669,1242.7289186,9.082e-05,2]
[327902184,1716594632036,-820.00266018,0.00010003,2]
[327902185,1716594632094,-7079.73671087,0.00010003,2]
[327902186,1716594632104,-2680.78177916,0.00010003,2]
[327902187,1716594632115,-10516.31440065,0.00010003,2]
[327902188,1716594632124,-2636.31883716,0.00010004,2]
[327902189,1716594632136,-10325.01907283,0.00010004,2]
[327902190,1716594632147,-255.0,0.00010004,2]
[327902205,1716594638250,-3064.3909481,0.00010002,2]
[327902207,1716594638260,-1978.87096567,0.00010002,2]
[327902209,1716594638269,-4243.64501823,0.00010004,2]
[327902211,1716594638282,-797.46,0.00010004,2]
[327902263,1716594649688,20000.0,0.00027,30]
[327902264,1716594650440,8707.89680552,9.021e-05,2]
[327902265,1716594650460,16192.10319448,9.021e-05,2]
[327902266,1716594669010,1977.052333,9.007e-05,2]
[327902267,1716594681115,41997.82536246,9.999e-05,2]
[327902268,1716594681897,68095.5551988,9.999e-05,2]
[327902269,1716594699490,35737.46391126,9.999e-05,2]
[327902270,1716594706419,440.5301474,9.004e-05,2]
[327902271,1716594750878,2844.6437608,8.998e-05,2]
[327902272,1716594761008,1449.72666987,0.0002,10]
[327902273,1716594764003,190.30351455,9.004e-05,2]
[327902274,1716594765020,390.50300875,9.004e-05,2]
[327902275,1716594766094,155.28665767,9.004e-05,2]
[327902276,1716594771244,309.6903097,9.004e-05,2]
[327902277,1716594771793,155.0324623,9.004e-05,2]
[327902278,1716594847382,3631.20230829,9.004e-05,2]
[327902279,1716594893728,250.0,8.979e-05,2]
[327902280,1716594903081,592.7051673,8.978e-05,2]
[327902281,1716594903164,705.84,0.00027,30]
[327902282,1716595054403,-1497.56271984,9.951e-05,2]
[327902283,1716595054569,-2636.31883716,9.952e-05,2]
[327902284,1716595054591,-455.7724915,9.952e-05,2]
[327902285,1716595055039,215.83943252,9.951e-05,2]
[327902286,1716595055080,528.89075591,9.951e-05,2]
[327902287,1716595055201,1899.08832656,9.951e-05,2]
[327902288,1716595055550,1339.904712,9.951e-05,2]
[327902289,1716595056230,3064.3909481,9.951e-05,2]
[327902290,1716595057750,685.11026498,9.951e-05,2]
[327902291,1716595062168,154.8915759,9.952e-05,2]
[327902292,1716595065393,2680.78177916,9.952e-05,2]
[327902293,1716595065969,395.60607896,9.952e-05,2]
[327902294,1716595068141,154.8915759,9.952e-05,2]
[327902295,1716595068758,4978.95050151,9.952e-05,2]
[327902296,1716595144219,40.10266324,8.95e-05,2]
[327902297,1716595144250,9000.0,8.95e-05,2]
[327902298,1716595162239,810.51,0.00027,30]
[327902299,1716595381225,1039.8666924,7.994e-05,2]
[327902300,1716595509860,250.0,7.914e-05,2]
[327902301,1716595633150,-703.12773459,8.894e-05,2]
[327902302,1716595633174,-316.53465407,8.894e-05,2]
[327902303,1716595633193,-281.75410999,8.894e-05,2]
[327902304,1716595633215,-690.72744387,8.895e-05,2]
[327902305,1716595633234,-154.8915759,8.895e-05,2]
[327902306,1716595633256,-11064.75247274,8.895e-05,2]
[327902307,1716595633276,-733.4773594,8.896e-05,2]
[327902308,1716595633295,-154.8915759,8.896e-05,2]
[327902309,1716595633318,-552.66051539,8.896e-05,2]
[327902310,1716595738163,7710.1333076,7.842e-05,2]
[327902318,1716595754111,-154.8915759,7.84e-05,2]
[327902319,1716595754133,-4738.41956333,7.841e-05,2]
[327902320,1716595754155,-17189.8666924,7.842e-05,2]
[327902321,1716595754177,-488.13903019,8.793e-05,2]
[327902322,1716595754201,-154.8915759,8.793e-05,2]
[327902323,1716595754225,-154.8915759,8.793e-05,2]
[327902324,1716595754249,-285.2556899,8.794e-05,2]
[327902325,1716595754271,-163.01658444,8.794e-05,2]
[327902326,1716595754294,-59438.70294732,8.794e-05,2]
[327902327,1716595754318,-9566.24990796,8.795e-05,2]
[327902328,1716595754343,-154.8915759,8.795e-05,2]
[327902329,1716595754368,-10516.31440065,8.795e-05,2]
[327902330,1716595754391,-160.27099543,8.795e-05,2]
[327902331,1716595754411,-7899.73937105,8.796e-05,2]
[327902332,1716595754432,-733.4773594,8.796e-05,2]
[327902333,1716595754452,-11064.75247274,8.796e-05,2]
[327902334,1716595754474,-154.8915759,8.796e-05,2]
[327902335,1716595754494,-154.8915759,8.796e-05,2]
[327902336,1716595754516,-156.57389491,8.796e-05,2]
[327902337,1716595754536,-916.65407287,8.796e-05,2]
[327902338,1716595754557,-154.8915759,8.796e-05,2]
[327902339,1716595754578,-154.8915759,8.797e-05,2]
[327902340,1716595754600,-410.78184757,8.797e-05,2]
[327902341,1716595754621,-2599.40071805,8.797e-05,2]
[327902342,1716595754645,-316.53465407,8.797e-05,2]
[327902343,1716595754667,-690.72744387,8.797e-05,2]
[327902344,1716595754688,-154.8915759,8.797e-05,2]
[327902345,1716595754711,-281.75410999,8.797e-05,2]
[327902346,1716595754732,-1978.87096567,8.797e-05,2]
[327902347,1716595754755,-962.44924846,8.798e-05,2]
[327902348,1716595754777,-174.73195156,8.886e-05,2]
[327902349,1716595754800,-513.98587396,8.886e-05,2]
[327902350,1716595754821,-154.8915759,8.886e-05,2]
[327902351,1716595754843,-523.01612629,8.886e-05,2]
[327902352,1716595754864,-154.98450155,8.886e-05,2]
[327902353,1716595754886,-68095.5551988,8.886e-05,2]
[327902354,1716595754908,-455.7724915,8.887e-05,2]
[327902355,1716595754929,-685.11026498,8.887e-05,2]
[327902356,1716595754952,-772.71271102,8.887e-05,2]
[327902357,1716595754974,-204.40270621,8.887e-05,2]
[327902358,1716595754997,-245.92298999,8.887e-05,2]
[327902359,1716595755019,-703.12773459,8.887e-05,2]
[327902360,1716595755045,-154.8915759,8.887e-05,2]
[327902361,1716595755067,-193.57216657,8.887e-05,2]
[327902362,1716595762180,-154.8915759,7.839e-05,2]
[327902363,1716595762204,-154.8915759,7.839e-05,2]
[327902364,1716595762230,-238.95770252,7.839e-05,2]
[327902365,1716595762253,-302.52048176,7.839e-05,2]
[327902366,1716595762273,-154.8915759,7.84e-05,2]
[327902367,1716595762296,-524.06756249,7.84e-05,2]
[327902368,1716595762316,-3064.3909481,7.84e-05,2]
[327902369,1716595762336,-524.06756249,7.84e-05,2]
[327902370,1716595762356,-1043.9787751,7.84e-05,2]
[327902371,1716595762511,-4682.54123984,7.841e-05,2]
[327902372,1716595773113,-154.8915759,7.837e-05,2]
[327902373,1716595773134,-154.8915759,7.838e-05,2]
[327902374,1716595773154,-154.8915759,7.838e-05,2]
[327902375,1716595773175,-154.8915759,7.838e-05,2]
[327902376,1716595773194,-245.1084241,7.838e-05,2]
[327902377,1716595773218,-1339.904712,7.838e-05,2]
[327902378,1716595773239,-513.4844886,7.838e-05,2]
[327902379,1716595773261,-170.02591569,7.839e-05,2]
[327902380,1716595773284,-281.51205589,7.839e-05,2]
[327902381,1716595773306,-190.8485057,7.839e-05,2]
[327902382,1716595773326,-306.27831146,7.839e-05,2]
[327902383,1716595773348,-771.33258513,7.839e-05,2]
[327902384,1716595773369,-154.8915759,7.839e-05,2]